bitfinex/quotes_ETHUSD_20250925
["timestamp","ask_amount","ask_price","bid_price","bid_amount"]
[1758808756039,6.79970134,3974.7,3974.6,2.51597645]
[1758808756339,0.33370134,3974.7,3974.6,2.51597645]
[1758808756540,6.8426,3974.7,3974.6,2.51597645]
[1758808756740,6.717,3974.7,3974.6,2.64157645]
[1758808756940,2.098,3974.9,3974.8,2.51584985]
[1758808757140,0.2092923,3974.9,3974.8,2.51584985]
[1758808757450,2.035,3974.9,3974.8,2.51584985]
[1758808758076,2.035,3974.9,3974.6,0.1256]
[1758808758289,2.035,3974.9,3974.8,2.51584985]
[1758808758459,2.035,3974.9,3974.8,2.64144985]
[1758808758652,0.001,3974.9,3974.8,2.64144985]
[1758808759786,0.001,3974.9,3974.8,4.28959083]
[1758808760084,0.001,3974.9,3974.8,4.64229083]
[1758808760279,0.001,3974.9,3974.8,2.64144985]
[1758808763389,0.001,3974.9,3974.8,3.92460834]
[1758808763687,0.001,3974.9,3974.8,4.12654985]
[1758808764193,0.001,3974.9,3974.8,4.15170834]
[1758808764375,0.001,3974.9,3974.8,4.12654985]
[1758808764567,0.001,3974.9,3974.8,4.79100083]
[1758808765105,0.001,3974.9,3974.8,4.81615932]
[1758808765723,0.001,3974.9,3974.8,4.09790083]
[1758808766278,0.001,3974.9,3974.8,4.79100083]
[1758808767010,0.001,3974.9,3974.8,4.09790083]
[1758808767539,0.001,3974.9,3974.8,2.64144985]
[1758808769012,0.001,3974.9,3974.8,3.10744985]
[1758808769212,0.001,3974.9,3974.8,4.12654985]
[1758808769380,0.001,3974.9,3974.8,7.12654985]
[1758808770002,1e-08,3975.5,3975.4,3.30747014]
[1758808770203,1e-08,3975.5,3975.4,3.63821715]
[1758808770410,1e-08,3975.9,3975.8,3.30721706]
[1758808770617,1e-08,3975.9,3975.8,3.33236923]
[1758808770818,1e-08,3975.9,3975.8,11.61731706]
[1758808772478,1e-08,3975.9,3975.8,7.00031706]
[1758808772704,2.097,3978.2,3975.8,7.00031706]
[1758808772705,2.097,3978.2,3978.1,2.51376285]
[1758808772879,2.097,3978.2,3977.0,0.792]
[1758808772880,2.637,3978.2,3977.0,0.792]
[1758808773082,2.637,3978.2,3977.7,2.51400935]
[1758808773282,0.54,3978.1,3977.2,2.51433169]
[1758808773507,0.54,3978.1,3977.9,2.51388367]
[1758808773508,2.3288,3978.1,3977.9,2.51388367]
[1758808773718,2.3288,3978.1,3978.0,2.51382604]
[1758808774016,2.637,3978.1,3977.0,0.792]
[1758808774407,20.165498,3978.0,3976.8,0.792]
[1758808774606,3.637604,3977.9,3976.9,2.51452136]
[1758808774916,0.54,3978.0,3977.7,2.51401266]
[1758808775119,3.962896,3977.9,3977.6,2.51407398]
[1758808775431,2.097,3978.1,3976.8,3.77257029]
[1758808775610,6.711,3978.0,3977.9,2.51388923]
[1758808776227,6.711,3978.0,3976.9,1.16156703]
[1758808776228,2.096,3978.0,3977.1,2.51439491]
[1758808776520,2.3278,3978.0,3977.8,2.51394957]
[1758808776691,0.2318,3977.9,3977.5,2.51409905]
[1758808776883,2.096,3978.0,3977.6,2.51407644]
[1758808776884,0.2318,3977.8,3977.6,2.51407644]
[1758808777282,0.5392,3977.7,3977.5,2.51413875]
[1758808777484,0.5392,3977.7,3977.6,2.51407884]
[1758808778888,19.150507,3978.2,3977.6,2.51402515]
[1758808779115,19.150507,3978.2,3977.2,0.25143317]
[1758808779116,7.2492,3978.2,3977.9,2.51384232]
[1758808779321,6.71,3978.2,3978.1,2.51376285]
[1758808779492,0.001,3978.4,3978.3,2.51363647]
[1758808780023,0.001,3978.4,3978.3,3.14197188]
[1758808780226,0.001,3978.4,3978.3,3.60797188]
[1758808780991,0.001,3978.4,3978.3,2.63923647]
[1758808781429,0.5455,3978.4,3977.4,0.792]
[1758808781588,0.5455,3978.4,3978.3,2.51363647]
[1758808781792,0.2381,3978.4,3978.3,2.51363647]
[1758808782006,0.2381,3978.4,3978.1,2.51371683]
[1758808782007,0.2381,3978.4,3978.1,2.51370164]
[1758808782337,6.05538,3978.3,3978.2,2.51364289]
[1758808782505,6.59988,3978.3,3978.0,2.63936935]
[1758808782707,0.001,3978.4,3978.0,2.63936935]
[1758808782708,0.5445,3978.2,3978.0,2.51381392]
[1758808782918,5.1565,3978.1,3978.0,2.51381392]
[1758808783295,4.8491,3978.1,3977.9,2.51384101]
[1758808783504,4.8491,3978.1,3977.8,2.63953079]
[1758808783710,0.5445,3978.0,3977.8,0.1256]
[1758808784032,0.5445,3978.0,3976.7,0.4643]
[1758808784033,2.6405,3977.9,3977.5,2.63972337]
[1758808784215,0.2371,3977.8,3977.7,2.5139694]
[1758808784914,0.2371,3977.8,3977.6,2.51407884]
[1758808785118,0.5445,3977.7,3977.5,2.51411987]
[1758808785290,0.2371,3977.6,3977.5,2.51411987]
[1758808785493,0.2371,3977.6,3977.3,0.1256]
[1758808785695,4.611,3977.5,3977.3,0.1256]
[1758808785895,4.8481,3977.5,3977.4,2.51420525]
[1758808786110,0.2371,3977.9,3977.6,2.51407884]
[1758808786324,7.2515,3977.8,3977.3,0.1256]
[1758808786510,0.5445,3977.7,3977.4,2.51414517]
[1758808786717,0.5445,3977.7,3977.3,0.1256]
[1758808786718,0.2371,3977.6,3977.3,0.1256]
[1758808786909,9.781148,3977.5,3976.9,2.51449756]
[1758808787113,0.1256,3977.3,3977.0,2.51445813]
[1758808787309,4.611,3977.2,3977.0,2.51445813]
[1758808787524,4.611,3977.2,3977.1,2.51439491]
[1758808788442,2.096,3977.9,3977.1,0.7081]
[1758808788640,8.291255,3977.8,3977.7,2.51401563]
[1758808788943,4.61,3977.8,3977.7,2.51401563]
[1758808789125,4.61,3977.8,3977.5,2.6397244]
[1758808789126,8.915755,3977.8,3977.5,2.63974035]
[1758808789442,7.61,3977.8,3977.7,2.51401563]
[1758808789642,5.096,3977.8,3977.7,2.51401563]
[1758808789847,9.706,3977.8,3977.7,2.51401563]
[1758808790061,3.0,3977.8,3977.7,2.51401563]
[1758808790235,7.61,3977.8,3977.7,2.51401563]
[1758808790556,0.1256,3978.2,3978.1,2.51376285]
[1758808790755,0.1266,3978.4,3978.3,2.51363647]
[1758808790923,6.8316,3978.4,3978.3,2.51363647]
[1758808791824,9.8316,3978.4,3978.3,2.51363647]
[1758808792020,3.0,3978.3,3978.2,2.51368763]
[1758808793011,3.0,3978.3,3977.7,0.1256]
[1758808793211,3.0,3978.3,3978.2,2.51369966]
[1758808793445,3.0,3978.3,3978.1,2.51375841]
[1758808793963,3.0,3978.3,3977.7,0.1256]
[1758808793964,11.622593,3978.2,3977.7,0.1256]
[1758808794321,6.728152,3978.1,3977.7,0.1256]
[1758808794528,4.608,3978.0,3977.9,2.51388923]
[1758808795451,6.764291,3978.0,3977.9,2.51388923]
[1758808795619,4.608,3978.0,3977.9,2.51388923]
[1758808795963,0.001,3978.4,3978.3,2.51363647]
[1758808796111,30.001,3978.4,3978.3,2.51363647]
[1758808796307,34.608,3978.4,3978.3,2.63923647]
[1758808796523,34.84167961,3978.4,3978.3,2.63923647]
[1758808796741,34.608,3978.4,3978.3,2.63923647]
[1758808797256,34.84179191,3978.4,3978.3,2.63923647]
[1758808797409,0.001,3978.4,3978.3,3.22173647]
[1758808797613,0.001,3978.4,3978.3,3.92088162]
[1758808798023,0.001,3978.4,3978.3,3.34733647]
[1758808798627,0.001,3978.4,3978.3,4.03887283]
[1758808799144,0.001,3978.4,3978.3,4.01373647]
[1758808799834,0.001,3978.4,3978.3,4.03887283]
[1758808800008,0.001,3978.4,3978.3,4.01373647]
[1758808800214,0.001,3978.4,3978.3,4.69161798]
[1758808800444,0.001,3978.4,3978.3,4.66648162]
[1758808800753,0.0002,3978.9,3978.8,2.51332059]
[1758808800922,0.23164936,3980.2,3979.0,0.792]
[1758808801133,0.39417015,3981.5,3981.4,2.5116793]
[1758808801452,18.00622479,3983.5,3981.4,2.5116793]
[1758808801453,0.2371,3983.3,3981.4,0.7081]
[1758808801608,2.387484,3983.2,3981.6,2.51155314]
[1758808801812,0.64,3983.4,3981.9,2.51136392]
[1758808802009,0.2371,3984.1,3982.1,3.0]
[1758808802225,0.2371,3984.8,3982.2,0.7081]
[1758808802550,37.42255379,3984.7,3982.3,0.26891111]
[1758808802764,21.410892,3984.6,3982.6,0.792]
[1758808802960,21.410892,3984.6,3982.3,0.26891111]
[1758808802961,21.944492,3984.6,3982.7,0.02510859]
[1758808803141,30.0,3984.5,3982.7,0.02510859]
[1758808803461,30.0,3984.5,3982.2,4.425]
[1758808803462,3.0,3982.6,3980.9,0.7023]
[1758808803627,3.0,3982.9,3981.0,1.4943]
[1758808803973,3.0,3982.7,3981.1,5.3063]
[1758808804125,3.0,3983.2,3982.3,2.51108612]
[1758808804324,3.0,3983.2,3981.8,4.603]
[1758808804526,0.39386369,3983.7,3982.1,3.0]
[1758808804841,0.39386369,3983.7,3982.3,0.792]
[1758808805028,0.39386369,3983.7,3982.5,2.51098556]
[1758808805231,8.210539,3983.6,3982.1,4.603]
[1758808805459,10.797992,3983.5,3982.1,2.51123778]
[1758808805661,51.53982479,3983.4,3980.6,0.2393]
[1758808805974,3.0,3983.2,3981.0,3.0]
[1758808806127,3.0,3983.0,3980.8,4.602]
[1758808806355,3.0,3982.8,3980.6,0.2393]
[1758808806629,3.0,3982.2,3979.9,2.094]
[1758808806939,3.0,3982.0,3980.1,0.463]
[1758808807124,3.0,3981.8,3981.0,2.51192451]
[1758808807326,0.5336,3982.1,3980.3,0.02512373]
[1758808807327,3.0,3981.6,3980.3,0.02512373]
[1758808807651,8.988712,3981.7,3979.5,2.75215037]
[1758808807652,3.0,3981.4,3979.5,2.75215037]
[1758808807959,3.0,3981.2,3980.6,2.51217246]
[1758808808271,3.75359,3980.6,3979.5,0.2393]
[1758808808432,3.0,3980.4,3979.1,0.463]
[1758808808627,3.0,3980.2,3979.6,0.1256]
[1758808808869,5.1336,3980.5,3978.5,0.7023]
[1758808808870,0.1256,3979.7,3979.3,2.51295222]
[1758808809062,3.61871,3979.6,3979.1,0.1256]
[1758808809361,3.61871,3979.6,3976.7,0.002]
[1758808809362,0.1256,3979.4,3978.8,0.1256]
[1758808809561,6.349777,3979.3,3978.8,0.1256]
[1758808809761,0.2262,3979.9,3978.4,0.2393]
[1758808809925,3.1256,3979.7,3979.0,0.1256]
[1758808810131,3.0,3979.5,3979.0,2.63876551]
[1758808810330,0.1256,3979.7,3979.1,2.51313111]
[1758808810534,0.2262,3979.9,3979.0,0.64081426]
[1758808810535,3.0,3979.5,3979.2,0.02513067]
[1758808810853,3.0,3980.4,3979.6,2.51276068]
[1758808811031,30.546,3980.3,3979.0,0.51521426]
[1758808811236,3.0,3979.9,3977.7,0.2295]
[1758808811432,4.6,3979.8,3977.8,0.49803952]
[1758808811645,4.6,3979.9,3979.2,2.51305304]
[1758808811844,4.6,3979.9,3978.0,2.51377599]
[1758808811845,6.96137,3979.8,3978.9,2.51324987]
[1758808812032,3.524673,3979.7,3979.1,2.51313111]
[1758808812233,3.524673,3979.8,3979.7,2.51275221]
[1758808812435,2.3326,3980.7,3979.2,0.02513067]
[1758808812635,2.3326,3980.7,3978.3,0.4729]
[1758808812636,3.0,3979.9,3978.3,0.4729]
[1758808812843,3.0,3979.7,3978.4,0.792]
[1758808813043,3.0,3979.7,3978.5,0.0251351]
[1758808813246,3.0,3979.7,3979.1,2.51312856]
[1758808813546,0.2386,3980.8,3979.3,0.792]
[1758808813859,3.61085079,3980.8,3979.6,0.792]
[1758808814036,3.230807,3980.7,3980.0,2.51250566]
[1758808814238,13.232108,3980.7,3979.8,0.02512689]
[1758808814572,0.546,3980.6,3979.1,0.792]
[1758808814865,0.546,3980.6,3978.5,0.05]
[1758808814866,8.145,3980.5,3978.5,2.094]
[1758808815065,8.145,3980.5,3978.6,0.23235]
[1758808815066,3.0,3980.3,3978.6,0.23235]
[1758808815271,3.0,3980.1,3978.7,2.51338376]
[1758808815478,2.3326,3980.0,3978.8,0.0251332]
[1758808815648,2.3326,3980.0,3978.8,0.7275332]
[1758808815836,2.3326,3980.0,3979.0,2.51318487]
[1758808815837,3.0,3979.8,3979.0,2.51318487]
[1758808816037,3.0,3979.6,3978.4,0.792]
[1758808816237,3.0,3979.4,3978.4,0.792]
[1758808816832,2.51121798,3982.2,3978.4,0.792]
[1758808817032,2.094,3980.7,3978.7,2.51338376]
[1758808817236,2.786619,3980.7,3979.7,2.51273841]
[1758808817476,2.786619,3980.7,3979.2,0.002]
[1758808817477,18.55222479,3980.6,3979.2,0.002]
[1758808817709,7.009326,3980.5,3979.2,0.002]
[1758808817886,4.599,3980.9,3979.4,0.792]
[1758808818196,3.0,3980.8,3980.2,2.51242628]
[1758808818353,3.0,3980.8,3980.3,2.51237052]
[1758808818558,5.74380588,3980.7,3979.2,0.794]
[1758808818758,3.0,3980.5,3979.3,0.4729]
[1758808818975,3.0,3980.8,3979.6,0.792]
[1758808819389,0.2386,3981.1,3980.6,2.51213087]
[1758808819689,3.241483,3981.0,3980.0,1.0215]
[1758808819876,4.598,3981.4,3980.1,0.5628129]
[1758808820059,0.37573843,3981.7,3980.8,2.5120181]
[1758808820256,4.598,3981.8,3980.9,0.02511994]
[1758808820589,4.598,3981.8,3981.5,2.51155913]
[1758808820791,5.739849,3981.7,3981.1,0.1248]
[1758808821017,4.7228,3981.8,3981.1,0.1248]
[1758808821152,3.546,3981.6,3981.1,0.1248]
[1758808821361,7.385533,3981.5,3980.8,0.1256]
[1758808821598,4.887521,3981.4,3980.8,0.1256]
[1758808821761,2.017241,3981.3,3980.8,0.1256]
[1758808821962,3.0,3981.2,3980.8,0.1256]
[1758808822494,3.0,3981.0,3980.1,0.5628129]
[1758808822697,3.236312,3980.9,3980.6,2.51218409]
[1758808822898,3.1248,3981.2,3980.5,0.1256]
[1758808823102,3.1248,3981.2,3980.6,0.7024]
[1758808823103,3.0,3981.2,3980.6,0.7024]
[1758808823257,4.7218,3981.7,3981.1,2.63662353]
[1758808823580,3.0,3981.6,3981.1,0.1248]
[1758808823784,3.0,3981.6,3981.2,2.51179675]
[1758808823951,3.0,3981.6,3981.1,0.1248]
[1758808824388,3.0,3981.6,3981.2,2.5117592]
[1758808824597,3.0,3981.6,3981.4,2.5116331]
[1758808824777,3.0,3981.6,3981.2,2.51174845]
[1758808824955,0.546,3981.5,3980.2,0.792]
[1758808825159,0.1248,3981.4,3980.8,0.1256]
[1758808825506,46.39637579,3981.3,3979.4,0.2295]
[1758808825657,19.912891,3981.2,3980.1,2.51244008]
[1758808825856,3.0,3981.0,3979.4,0.2295]
[1758808826057,3.0,3980.8,3979.4,1.22034753]
[1758808826291,3.590837,3980.7,3979.4,0.2295]
[1758808826468,4.596,3980.8,3980.6,2.51213077]
[1758808826677,2.753318,3980.7,3980.3,2.51235563]
[1758808826970,3.299318,3980.7,3979.4,4.60694164]
[1758808827298,2.51173478,3981.4,3979.4,4.60694164]
[1758808827299,0.2386,3981.2,3979.6,3.30481535]
[1758808827461,12.652049,3981.1,3980.2,2.51238763]
[1758808827794,0.3940573,3980.6,3979.6,0.792]
[1758808827990,0.2386,3981.7,3979.9,0.792]
[1758808828205,2.914,3981.6,3980.1,0.792]
[1758808828358,0.39399278,3981.3,3980.4,0.792]
[1758808828560,0.39399278,3981.3,3980.3,0.792]
[1758808828860,17.14430028,3981.2,3980.2,0.14944]
[1758808829061,0.39399928,3981.2,3980.2,0.14944]
[1758808829280,3.0,3981.4,3980.3,0.2295]
[1758808829485,3.0,3981.4,3980.2,0.62234]
[1758808829486,11.908524,3981.4,3980.2,0.14944]
[1758808829693,3.0,3981.2,3980.6,2.51217007]
[1758808829877,2.633177,3981.1,3980.5,2.51219039]
[1758808830076,3.0,3981.0,3980.5,2.51219039]
[1758808830272,3.0,3981.4,3979.9,0.2295]
[1758808830473,3.0,3981.0,3980.0,2.51252061]
[1758808830701,3.0,3980.8,3979.2,0.002]
[1758808830899,3.0,3980.5,3979.2,0.002]
[1758808831200,3.0,3980.3,3979.2,0.002]
[1758808831410,0.2386,3980.7,3979.4,2.51294164]
[1758808831616,3.0,3980.5,3979.5,0.02512878]
[1758808831772,3.0,3980.3,3979.9,2.51261911]
[1758808832105,0.2386,3980.3,3979.6,0.15195288]
[1758808832314,0.546,3980.6,3979.2,0.002]
[1758808832599,3.0,3980.8,3980.1,2.51247561]
[1758808832830,3.0,3980.8,3979.7,0.2295]
[1758808832996,3.0,3980.6,3979.8,0.02512689]
[1758808833194,3.0,3980.8,3979.8,0.02512689]
[1758808833428,3.0,3980.8,3979.2,0.002]
[1758808833429,3.0,3980.4,3979.5,2.51283512]
[1758808833629,3.0,3980.0,3979.2,0.002]
[1758808833942,3.0,3980.2,3979.3,2.51300479]
[1758808834134,4.14903037,3980.1,3979.3,2.51300479]
[1758808834292,0.22932437,3980.0,3979.3,2.51300479]
[1758808834492,0.46792437,3980.1,3979.4,0.02512941]
[1758808834692,3.0,3980.0,3979.4,2.51292333]
[1758808834919,3.0,3980.0,3979.2,0.02713067]
[1758808835193,0.22980955,3979.9,3979.8,2.51268907]
[1758808835399,3.0,3980.0,3979.9,2.51262594]
[1758808835596,3.22980368,3980.0,3979.7,0.1256]
[1758808835802,0.39413393,3980.1,3980.0,2.51256281]
[1758808836035,0.1256,3980.6,3980.0,2.51256281]
[1758808836338,0.1256,3980.6,3980.2,2.51242201]
[1758808836339,5.4506459,3980.5,3980.2,2.51242201]
[1758808836636,0.2300499,3980.4,3980.2,2.51238669]
[1758808836819,0.2300499,3980.3,3980.2,2.51238669]
[1758808837025,0.2300499,3980.3,3980.2,2.51243656]
[1758808837224,0.22804008,3980.3,3980.2,2.51243656]
[1758808838031,3.0,3980.5,3979.9,0.1256]
[1758808838335,5.11369847,3980.6,3980.1,2.51245826]
[1758808838336,3.0,3980.3,3980.1,2.51245826]
[1758808838631,3.0,3980.5,3980.0,2.51255655]
[1758808838839,9.069933,3980.5,3980.0,2.51255655]
[1758808839034,0.2386,3980.4,3979.2,0.002]
[1758808839220,0.2396,3980.8,3979.7,2.51270235]
[1758808839423,0.1256,3980.7,3980.6,2.51218409]
[1758808839596,0.001,3980.8,3980.7,0.1256]
[1758808839801,0.001,3980.8,3980.7,2.63772098]
[1758808840446,0.001,3980.8,3980.7,0.1256]
[1758808840743,0.001,3980.8,3980.6,2.51216688]
[1758808840951,0.001,3980.8,3980.5,2.51222443]
[1758808841152,0.001,3980.8,3980.4,0.1256]
[1758808841460,2.254372,3980.4,3980.1,2.63808471]
[1758808841761,3.0,3980.6,3980.1,2.63809584]
[1758808841924,12.332849,3980.5,3980.1,0.1256]
[1758808842123,12.270949,3980.4,3980.1,0.1256]
[1758808842450,2.174581,3980.4,3980.2,2.51238277]
[1758808842663,2.174581,3980.5,3980.3,2.5123583]
[1758808842951,2.174581,3980.5,3980.1,0.1256]
[1758808843156,2.414481,3980.5,3980.1,0.1256]
[1758808843452,4.278756,3980.4,3979.8,2.63823267]
[1758808843658,0.5473,3980.4,3979.8,0.1256]
[1758808843819,3.0,3980.2,3979.8,0.1256]
[1758808844153,2.3003,3980.1,3979.8,0.1256]
[1758808844315,3.0,3980.2,3979.8,0.1256]
[1758808844516,2.646968,3980.1,3979.8,0.1256]
[1758808844716,3.0,3980.3,3979.8,0.1256]
[1758808844953,3.0,3980.1,3979.8,0.1256]
[1758808845252,3.0,3980.1,3980.0,2.51256281]
[1758808845452,6.643755,3980.1,3980.0,2.51256281]
[1758808845617,7.03785198,3980.1,3979.9,2.5126053]
[1758808845814,3.39409698,3980.1,3979.9,2.5126053]
[1758808846216,3.39409698,3980.1,3979.8,0.1256]
[1758808846414,3.39409698,3980.1,3979.9,2.51258492]
[1758808846819,3.39409698,3980.1,3980.0,2.51256281]
[1758808847220,0.39409698,3980.1,3980.0,2.63816281]
[1758808847421,0.39409698,3980.1,3980.0,0.1256]
[1758808847849,25.96771798,3980.1,3980.0,0.1256]
[1758808848048,25.96771798,3980.1,3979.3,0.1256]
[1758808848049,13.861762,3980.0,3979.3,0.1256]
[1758808848255,3.1256,3979.8,3979.3,0.1256]
[1758808848460,4.006143,3979.7,3979.4,2.51294041]
[1758808848625,4.006143,3979.7,3979.3,0.1256]
[1758808848820,3.3074,3979.6,3979.2,0.002]
[1758808849064,3.1256,3979.3,3979.2,0.002]
[1758808849264,3.35995035,3979.3,3979.2,0.002]
[1758808849466,21.19820814,3979.3,3979.2,0.002]
[1758808849751,12.95985114,3979.3,3979.2,0.002]
[1758808850255,12.83425114,3979.3,3979.2,0.002]
[1758808850455,19.26388714,3979.3,3979.2,0.002]
[1758808850631,21.27902314,3979.3,3979.2,0.002]
[1758808850841,2.51317625,3979.1,3978.8,0.002]
[1758808851054,2.51325743,3978.9,3978.8,0.002]
[1758808851240,25.88091978,3978.9,3978.8,0.002]
[1758808851574,26.08949478,3978.9,3978.8,0.002]
[1758808851776,6.71436535,3978.9,3978.8,0.002]
[1758808851944,3.23435035,3978.9,3978.8,0.002]
[1758808852148,7.82435035,3978.9,3978.8,2.51532059]
[1758808852348,4.82435035,3978.9,3978.8,0.002]
[1758808852574,4.82435035,3978.9,3978.8,2.75982059]
[1758808852575,0.23435035,3978.9,3978.8,2.75982059]
[1758808852813,4.59,3978.9,3978.8,3.22242059]
[1758808852981,4.82435035,3978.9,3978.8,2.75982059]
[1758808853162,4.59,3978.9,3978.8,2.75982059]
[1758808853363,4.59,3978.9,3978.8,2.51532059]
[1758808853564,4.59,3978.9,3978.8,0.002]
[1758808853774,4.82373851,3978.9,3978.8,0.002]
[1758808853958,4.59,3978.9,3978.8,2.51532059]
[1758808854159,4.59,3978.9,3978.8,3.22242059]
[1758808854385,4.59,3978.9,3978.8,2.51532059]
[1758808854570,4.59,3978.9,3978.8,0.002]
[1758808854756,4.59,3978.9,3978.8,2.51532059]
[1758808855172,4.59,3978.9,3978.8,3.22242059]
[1758808855591,0.39421343,3980.0,3979.9,2.51262594]
[1758808855752,3.87221343,3980.0,3979.7,2.51268932]
[1758808855948,9.369878,3979.9,3979.4,0.2445]
[1758808856153,0.38375183,3980.3,3979.8,2.51268907]
[1758808856383,3.0,3980.1,3979.8,3.21978907]
[1758808856688,4.589,3980.0,3979.8,3.21977993]
[1758808856889,4.589,3980.0,3979.9,2.51262594]
[1758808857058,4.589,3980.0,3979.9,3.21972594]
[1758808858073,7.59,3980.3,3980.2,2.51243656]
[1758808858387,10.124735,3980.3,3980.2,2.51243656]
[1758808859113,3.001,3980.3,3980.2,3.21953656]
[1758808859722,0.001,3980.3,3980.2,3.21953656]
[1758808860021,0.001,3980.3,3980.2,3.79274598]
[1758808860191,0.001,3980.3,3980.2,3.91834598]
[1758808860395,0.001,3980.3,3980.2,4.60987034]
[1758808860983,0.001,3980.7,3980.6,3.30418409]
[1758808861214,0.001,3980.7,3980.6,8.4979508]
[1758808861416,0.001,3980.7,3980.6,9.17992896]
[1758808861914,1e-08,3981.2,3981.1,3.30386857]
[1758808862082,1e-08,3981.2,3981.1,7.89086857]
[1758808862282,1e-08,3981.2,3981.1,8.59796857]
[1758808862516,1e-08,3981.2,3981.1,9.70896038]
[1758808863605,1e-08,3981.2,3981.1,11.80196038]
[1758808863810,1e-08,3981.2,3981.1,2.75636857]
[1758808864008,1e-08,3981.2,3981.1,3.99346857]
[1758808864186,1e-08,3981.2,3981.1,4.01858725]
[1758808864384,1.092,3982.9,3982.8,2.51079642]
[1758808864736,3.4907,3983.9,3982.9,0.792]
[1758808864939,0.39383082,3983.1,3983.0,2.93324129]
[1758808865223,3.258,3983.9,3983.0,1.06936425]
[1758808865395,0.39374497,3984.1,3984.0,2.51004016]
[1758808866026,0.001,3984.6,3983.6,0.2268]
[1758808866239,0.001,3984.6,3983.8,0.792]
[1758808866415,0.001,3984.6,3984.2,2.50991284]
[1758808866601,0.001,3984.6,3984.3,0.02509851]
[1758808866805,0.001,3984.6,3983.4,0.2268]
[1758808867099,3.0,3984.4,3983.7,2.51022257]
[1758808867285,0.001,3984.6,3983.7,2.51022257]
[1758808867286,0.001,3984.6,3983.7,2.51022469]
[1758808867489,2.2683,3984.5,3983.4,0.6719]
[1758808867719,4.583,3984.4,3983.7,2.51017123]
[1758808867933,0.001,3984.6,3984.0,2.50997812]
[1758808868093,4.584,3984.6,3984.2,2.50991158]
[1758808868292,4.584,3984.6,3983.8,0.792]
[1758808868488,4.584,3984.6,3984.5,2.50972518]
[1758808868690,0.001,3984.6,3984.5,3.18162518]
[1758808869126,0.001,3984.6,3984.0,0.792]
[1758808869328,0.001,3984.6,3984.4,2.5097382]
[1758808869496,0.001,3984.6,3984.0,0.792]
[1758808869497,0.001,3984.6,3984.2,2.50989839]
[1758808869697,0.001,3984.6,3983.9,0.2268]
[1758808869894,0.001,3984.6,3983.9,2.73684216]
[1758808870108,0.001,3984.6,3984.0,2.51001721]
[1758808870290,0.001,3984.6,3984.0,2.51004016]
[1758808870496,0.001,3984.6,3984.4,0.1248]
[1758808871228,2.50981511,3984.4,3983.2,3.17334306]
[1758808871431,7.439434,3984.3,3983.7,0.1248]
[1758808871738,0.1248,3984.1,3983.5,0.1248]
[1758808872029,3.0,3984.2,3984.0,0.1248]
[1758808872494,15.364077,3984.1,3984.0,0.1248]
[1758808872701,10.890923,3984.0,3983.5,0.1248]
[1758808873029,3.0,3983.8,3983.5,0.1248]
[1758808873229,9.094264,3983.7,3983.5,0.1248]
[1758808873593,3.2389,3983.8,3983.5,0.1248]
[1758808873793,3.0,3983.6,3983.5,0.1248]
[1758808874038,3.0,3983.6,3982.7,0.2279]
[1758808874243,3.0,3983.6,3983.0,0.1248]
[1758808874244,3.0,3983.5,3983.0,0.1248]
[1758808874409,3.0,3983.3,3983.0,0.1248]
[1758808874616,3.0,3983.3,3981.6,2.51149886]
[1758808874617,3.0,3983.1,3982.5,0.1248]
[1758808874931,0.1248,3982.8,3982.2,0.1248]
[1758808875136,3.0,3982.6,3982.2,0.1248]
[1758808875347,3.0,3982.4,3982.2,0.1248]
[1758808875512,3.0,3982.6,3982.2,0.1248]
[1758808875716,4.579,3982.7,3981.4,0.4349]
[1758808875717,3.0,3982.4,3981.4,0.4349]
[1758808875949,3.0,3982.4,3981.7,0.1248]
[1758808875950,3.0,3982.2,3981.7,0.1248]
[1758808876266,3.0,3982.0,3981.1,0.002]
[1758808876427,26.219587,3982.1,3981.1,0.002]
[1758808876428,0.1248,3981.6,3981.1,0.002]
[1758808876611,3.598324,3981.5,3981.1,0.002]
[1758808876819,3.0,3981.3,3981.1,0.002]
[1758808877172,6.672396,3981.2,3981.1,0.002]
[1758808877445,6.66498,3981.2,3981.1,0.002]
[1758808877613,0.1248,3981.8,3981.1,0.7896]
[1758808877815,0.39398523,3981.9,3981.6,2.51153858]
[1758808878010,0.39398523,3981.9,3981.7,0.6628]
[1758808878313,6.67,3982.5,3981.8,0.6628]
[1758808878509,0.39390597,3982.5,3981.8,0.6628]
[1758808878716,1.03090597,3982.5,3981.9,0.68791363]
[1758808878918,0.39390597,3982.5,3981.9,0.68791363]
[1758808879114,2.967,3982.6,3981.9,3.17416104]
[1758808879420,2.967,3982.6,3982.4,2.51100379]
[1758808879626,0.32265638,3983.2,3982.1,0.81711237]
[1758808879948,4.577,3983.2,3982.5,0.6628]
[1758808880159,0.3084,3984.1,3982.6,0.81710922]
[1758808880361,2.093,3983.6,3982.7,0.6628]
[1758808880657,2.093,3983.6,3982.2,2.51115792]
[1758808880658,2.093,3984.1,3983.0,0.792]
[1758808880959,0.001,3984.6,3984.5,2.50972518]
[1758808881159,0.001,3984.6,3984.5,3.30172518]
[1758808881316,0.001,3984.6,3984.5,3.98962243]
[1758808881677,0.001,3984.6,3984.5,3.96452518]
[1758808881856,0.001,3984.6,3984.5,4.63705629]
[1758808882018,0.001,3984.6,3984.5,4.61195904]
[1758808882530,0.001,3984.6,3984.5,2.10223386]
[1758808882726,0.001,3984.6,3984.5,3.96452518]
[1758808883127,0.001,3984.6,3984.5,3.52962518]